[Event "WSTCC-50 2024"]
[Site "Krakow"]
[Date "2024.07.03"]
[Round "2.6"]
[White "Marinello, Beatriz"]
[Black "Flear, Glenn C"]
[Result "0-1"]
[ECO "D04"]
[WhiteElo "2109"]
[BlackElo "2390"]
[Annotator "TA"]
[PlyCount "88"]
[EventDate "2024.07.01"]
[EventType "team-tourn"]
[EventCountry "POL"]
[SourceTitle "playchess.com"]
[Source "ChessBase"]
[SourceQuality "1"]
[TimeControl "40/5400+30:1800+30"]

{[%evp 14,88,-16,-35,0,-20,0,0,-6,-98,-95,-88,-90,-93,-85,-131,-35,-28,-10,-35,0,-60,-62,-293,-302,-472,-500,-512,-457,-466,-348,-427,-429,-412,-335,-365,-371,-349,-334,-386,-347,-386,-378,-393,-378,-429,-420,-433,-389,-506,-521,-547,-527,-596,-597,-592,-587,-575,-560,-795,-791,-847,-844,-1000,-937,-1008,-993,-1360,-1342,-5783,-5716,-29975,-29976,-29980,-29980,-29982,-29983]} 1. d4 {[%emt 0:00:07]} d5 {[%emt 0:00:10]} 2. Nf3 {[%emt 0:00:14]} Nf6 {[%emt 0:00:13]} 3. e3 {[%emt 0:03:18]} g6 {[%emt 0:01:58]} 4. Be2 {[%emt 0:00:45]} Bg7 {[%emt 0:00:27]} 5. O-O {[%emt 0:00:26]} O-O {[%emt 0:00:39]} 6. b3 {[%emt 0:01:19]} c5 {[%emt 0:03:52]} 7. Bb2 {[%emt 0:00:35]} cxd4 {[%emt 0:01:23]} 8. Nxd4 {[%emt 0:01:51]} Re8 {[%emt 0:08:30]} 9. c4 {[%emt 0:04:12]} e5 {[%emt 0:01:18]} 10. Nf3 {[%emt 0:00:29]} Nc6 {[%emt 0:00:19][%cal Od5d4] The position is equal.} 11. Nbd2 {[%emt 0:12:16]} (11. Nc3 $11) 11... d4 $17 {[%emt 0:02:31]} 12. exd4 {[%emt 0:03:03]} e4 {[%emt 0:03:10]} (12... Nxd4 $6 13. Nxd4 exd4 14. Nf3 $11) 13. Ne1 {[%emt 0:02:21]} Nxd4 {[%emt 0:00:16] Black is much more active. The white rooks are passive.} 14. Nc2 {[%emt 0:12:43] [#]} (14. Bxd4 $142 Qxd4 15. Nc2) 14... Nxe2+ {[%emt 0:04:33]} (14... Nxc2 $1 $17 15. Qxc2 Bf5) 15. Qxe2 $15 {[%emt 0:00:07]} Bg4 {[%emt 0:05:43]} 16. Qe1 {[%emt 0:04:34]} Qd3 {[%emt 0:03:45]} (16... Qd6 $5) 17. Nb4 {[%emt 0:00:44]} ({White should try} 17. Rc1 $11) 17... Qd6 $1 $36 {[%emt 0:03:06][%mdl 2048] Black is pushing.} 18. Nb1 $2 {[%emt 0:12:52] Now White is beyond hope.} (18. Bxf6 $1 $15 Qxf6 (18... Qxb4 19. Bxg7 Kxg7 20. Nxe4 $16) 19. Rc1) 18... Bf3 $19 {[%emt 0:10:48]} 19. h3 {[%emt 0:01:25] [#] Prevents Ng4.} (19. Qd2 $142 Qe6 (19... Qxd2 20. Nxd2 Rad8 21. Nxf3 $11) 20. h3 (20. gxf3 $2 exf3 21. Qf4 Ne4 $19)) 19... Ng4 $1 {[%emt 0:03:29][%mdl 512]} 20. hxg4 {[%emt 0:00:38] Strongly threatening Bxg7.} Bxb2 {[%emt 0:00:16] This pair of bishops is nice.} 21. Nd5 {[%emt 0:00:40][%cal Ob1c3]} Bxa1 {[%emt 0:05:04]} 22. Nbc3 {[%emt 0:00:12]} Bxc3 {[%emt 0:00:31]} 23. Qxc3 {[%emt 0:00:10] [#]} Qe5 {[%emt 0:00:56]} 24. gxf3 {[%emt 0:03:25]} Qxc3 {[%emt 0:00:14]} 25. Nxc3 {[%emt 0:00:07]} exf3 {[%emt 0:00:06][%mdl 4096] Endgame. KRR-KRN} 26. Kh2 {[%emt 0:00:22]} Rad8 {[%emt 0:01:16]} 27. Kg3 {[%emt 0:00:41]} Kg7 {[%emt 0:00:44]} 28. Nd5 {[%emt 0:03:46]} Re2 {[%emt 0:01:18]} 29. Ra1 {[%emt 0:00:10]} Rb2 {[%emt 0:00:54]} 30. Kxf3 {[%emt 0:03:19]} h6 {[%emt 0:01:39]} 31. Re1 {[%emt 0:03:10]} Rxa2 {[%emt 0:04:34]} 32. Re7 {[%emt 0:00:13] [#]} b5 {[%emt 0:01:32]} 33. Rb7 {[%emt 0:00:40]} (33. Nc3 Rb2) 33... bxc4 {[%emt 0:01:03]} 34. bxc4 {[%emt 0:00:08]} a5 {[%emt 0:01:23]} 35. Ra7 {[%emt 0:00:11]} a4 {[%emt 0:01:10]} 36. Kg2 {[%emt 0:01:01]} a3 {[%emt 0:01:26]} 37. Kf3 {[%emt 0:03:34]} Rb8 {[%emt 0:04:54]} 38. Ke4 {[%emt 0:02:41]} Rb3 {[%emt 0:06:49]} 39. c5 {[%emt 0:06:11]} Rc2 {[%emt 0:01:26]} 40. Kd4 {[%emt 0:00:15]} a2 {[%emt 0:01:27][%cal Ob3b1] And now ...Rb1! would win.} 41. Ne3 {[%emt 0:33:28]} Rd2+ {[%emt 0:31:24]} 42. Kc4 {[%emt 0:00:37]} Rb1 {[%emt 0:00:21] Black mates.} ({Not} 42... Rxf2 43. Kxb3 Rf3 44. Rxa2 Rxe3+ 45. Kb4 $11) 43. Kc3 {[%emt 0:00:19]} Rxf2 {[%emt 0:00:33]} ({Weaker is} 43... a1=B+ 44. Kxd2 Bd4 45. Ra5 $15) 44. Nc2 {[%emt 0:00:25] [#]} Rxc2+ $1 {[%emt 0:00:59] Weighted Error Value: White=0.62/Black=0.20 (precise) .  Loses game:     	White=1     	---        Mistake:       	White=4     	Black=1      Inaccurate:     	White=2     	Black=1      OK:         	White=7     	Black=18     Best:        	White=1     	Black=1      Strong:       	---       	Black=1      Brilliant:      	---       	Black=1} 0-1

[Event "WSTCC-50 2024"]
[Site "Krakow"]
[Date "2024.07.03"]
[Round "2.6"]
[White "Lauterbach, Ingrid"]
[Black "Motuz, Karol"]
[Result "1/2-1/2"]
[ECO "A90"]
[WhiteElo "2023"]
[BlackElo "2293"]
[Annotator "TA"]
[PlyCount "83"]
[EventDate "2024.07.01"]
[EventType "team-tourn"]
[EventCountry "POL"]
[SourceTitle "playchess.com"]
[Source "ChessBase"]
[SourceQuality "1"]
[TimeControl "40/5400+30:1800+30"]

{[%evp 10,83,33,0,1,6,16,0,0,0,0,0,8,-17,-11,-19,-14,-17,3,0,10,0,0,0,0,0,0,0,41,-81,-83,-73,-76,-71,-66,-75,-26,-25,0,0,196,227,200,217,202,210,337,321,327,344,318,199,208,59,66,24,31,20,18,6,4,0,0,0,0,0,0,0,0,0,0,0,0,0,0,0]} 1. d4 {[%emt 0:00:04]} e6 {[%emt 0:00:41]} 2. c4 {[%emt 0:00:20]} f5 {[%emt 0:01:11]} 3. g3 {[%emt 0:00:49]} Nf6 {[%emt 0:00:08]} 4. Bg2 {[%emt 0:01:41]} c6 {[%emt 0:00:09]} 5. Nc3 {[%emt 0:02:27]} d5 {[%emt 0:01:07]} 6. cxd5 {[%emt 0:05:46]} cxd5 {[%emt 0:02:09]} 7. Nf3 {[%emt 0:01:15]} Bd6 {[%emt 0:01:54]} 8. O-O {[%emt 0:04:50]} Nc6 {[%emt 0:02:19]} 9. b3 {[%emt 0:03:56]} O-O {[%emt 0:05:03]} 10. Bb2 {[%emt 0:02:26]} Bd7 {[%emt 0:05:07]} 11. Nb5 {[%emt 0:06:38]} Be7 {[%emt 0:01:14]} 12. Rc1 {[%emt 0:03:27]} Rc8 {[%emt 0:02:27]} 13. Nc3 {[%emt 0:12:17]} Be8 {[%emt 0:09:55]} 14. Ne5 {[%emt 0:10:18]} Bh5 {[%emt 0:10:35]} 15. Qd3 {[%emt 0:05:41]} Nxe5 {[%emt 0:12:27]} 16. dxe5 {[%emt 0:00:15]} Ne4 {[%emt 0:03:03]} 17. Nb5 {[%emt 0:11:45]} Qa5 {[%emt 0:13:42]} 18. a4 {[%emt 0:12:31]} Qd2 {[%emt 0:08:57]} 19. Nxa7 {[%emt 0:04:09]} (19. Rxc8 $14 {stays ahead.} Rxc8 20. Bxe4 Qxb2 21. Bxd5 Qxe5 (21... exd5 $2 22. Qxf5 Rf8 23. Qxh5 $18) 22. Bc4) 19... Rxc1 $17 {[%emt 0:03:32]} (19... Qxe2 $2 {is the wrong capture.} 20. Qxe2 Bxe2 21. Nxc8 $18 (21. Rxc8 Bxf1 22. Kxf1 Nd2+ 23. Ke2 Bb4 $18)) 20. Bxc1 {[%emt 0:00:40]} Qxe2 {[%emt 0:01:35]} 21. Qxe2 {[%emt 0:01:02]} Bxe2 {[%emt 0:00:02]} 22. Re1 {[%emt 0:00:07]} Bd3 {[%emt 0:03:02]} (22... Bc5 $17 23. Rxe2 Bxa7) 23. Be3 $11 {[%emt 0:00:49]} Ba3 {[%emt 0:06:49]} 24. Bf1 {[%emt 0:00:59]} Bc2 {[%emt 0:01:09]} (24... Bxf1 $11 25. Kxf1 Bb4) 25. Nb5 $18 {[%emt 0:00:13]} Bb2 {[%emt 0:02:39]} 26. f3 {[%emt 0:02:09]} Bxe5 {[%emt 0:01:30]} ({Don't blunder} 26... Nc3 $2 27. Nxc3 Bxc3 28. Rc1 $18) 27. fxe4 {[%emt 0:00:16]} fxe4 {[%emt 0:00:27]} (27... Bxe4 {keeps fighting.} 28. Rc1 Kf7) 28. Nd4 {[%emt 0:01:50]} Bxd4 {[%emt 0:00:28]} 29. Bxd4 {[%emt 0:00:08]} Bxb3 {[%emt 0:00:07]} 30. Bh3 {[%emt 0:00:34]} Re8 {[%emt 0:00:41][%cal Oe6e5]} 31. Rb1 {[%emt 0:02:17]} (31. a5 $18 {aiming for Rb1.} e5 32. Bc5) 31... Bxa4 $14 {[%emt 0:00:33]} 32. Rxb7 {[%emt 0:00:20] White is more active.} e5 {[%emt 0:00:17]} 33. Bc5 {[%emt 0:00:15] [#] Strongly threatening Rb4.} d4 {[%emt 0:01:00] The position is equal.} 34. Ra7 {[%emt 0:01:14]} Bc6 {[%emt 0:00:52]} 35. Ra6 {[%emt 0:00:34]} Bd5 {[%emt 0:00:23]} 36. Bd6 {[%emt 0:02:01] This pair of bishops is nice.} e3 {[%emt 0:00:35]} 37. Ra5 {[%emt 0:00:19]} Bc4 {[%emt 0:00:26] [#] Hoping for ...d3.} 38. Rxe5 {[%emt 0:01:18]} Rxe5 {[%emt 0:00:32]} 39. Bxe5 {[%emt 0:00:05]} d3 {[%emt 0:00:05] ( -> ...d2)} 40. Bf4 {[%emt 0:00:20]} d2 {[%emt 0:00:26]} 41. Bg4 {[%emt 0:30:17]} Bb3 {[%emt 0:30:22]} 42. Bxe3 {[%emt 0:00:06] White really could win this.   Weighted Error Value: White=0.23 (precise) /Black=0.19 (very precise) .  Loses game:     	---       	Black=1      Mistake:       	White=2     	Black=2      Inaccurate:     	White=2     	Black=1      OK:         	White=14    	Black=14     Best:        	White=1     	Black=6} 1/2-1/2

[Event "WSTCC-50 2024"]
[Site "Krakow"]
[Date "2024.07.03"]
[Round "2.6"]
[White "Bhawoodien, Shabir Hussain"]
[Black "Horvath, Julia"]
[Result "0-1"]
[ECO "C24"]
[WhiteElo "1990"]
[BlackElo "2116"]
[Annotator "NA RC"]
[PlyCount "92"]
[EventDate "2024.07.01"]
[EventType "team-tourn"]
[EventCountry "POL"]
[SourceTitle "playchess.com"]
[Source "ChessBase"]
[SourceQuality "1"]
[TimeControl "40/5400+30:1800+30"]

1. e4 {[%emt 0:00:06]} e5 {[%emt 0:00:06]} 2. Bc4 {[%emt 0:00:07]} Nf6 {[%emt 0:00:08]} 3. d3 {[%emt 0:00:07]} Bc5 {[%emt 0:00:38]} 4. Nc3 {[%emt 0:02:49]} Nc6 {[%emt 0:00:48]} 5. f4 {[%emt 0:00:11]} d6 {[%emt 0:00:34]} 6. Nf3 {[%emt 0:00:06]} a6 {[%emt 0:02:21]} 7. f5 {[%emt 0:02:20]} h6 {[%emt 0:01:00]} 8. Nd5 {[%emt 0:04:33]} b5 {[%emt 0:09:26]} 9. Nxf6+ {[%emt 0:03:43]} Qxf6 {[%emt 0:02:13]} 10. Bd5 {[%emt 0:00:07]} Bb7 {[%emt 0:00:13]} 11. c3 {[%emt 0:10:26]} Rb8 {[%emt 0:04:35]} 12. b4 {[%emt 0:07:16]} Bb6 {[%emt 0:00:16]} 13. g4 {[%emt 0:01:31]} Qe7 {[%emt 0:01:20]} 14. Qe2 {[%emt 0:04:22]} Nd8 {[%emt 0:04:03]} 15. Bb3 {[%emt 0:00:03]} c5 {[%emt 0:00:10]} 16. Be3 {[%emt 0:11:53]} Bc6 {[%emt 0:00:50]} 17. O-O {[%emt 0:08:55]} a5 {[%emt 0:14:14]} 18. a3 {[%emt 0:03:12]} Qa7 {[%emt 0:06:30]} 19. bxc5 {[%emt 0:12:27]} dxc5 {[%emt 0:08:35]} 20. Bf2 {[%emt 0:00:20]} Qe7 {[%emt 0:04:43]} 21. Kg2 {[%emt 0:06:01]} Rb7 {[%emt 0:02:15]} 22. Bg3 {[%emt 0:02:00]} Bc7 {[%emt 0:00:43]} 23. Bh4 {[%emt 0:03:48]} Qd7 {[%emt 0:02:58]} 24. Rad1 {[%emt 0:01:45]} Rb8 {[%emt 0:02:56]} 25. Rfe1 {[%emt 0:00:42]} Bd6 {[%emt 0:09:48]} 26. Kg1 {[%emt 0:05:22]} Qb7 {[%emt 0:07:54]} 27. Bg3 {[%emt 0:01:20]} Qe7 {[%emt 0:04:22]} 28. h3 {[%emt 0:01:11]} Rc8 {[%emt 0:02:52]} 29. Qh2 {[%emt 0:00:12]} c4 {[%emt 0:05:07]} 30. dxc4 {[%emt 0:00:34]} Bc5+ {[%emt 0:00:12]} 31. Bf2 {[%emt 0:02:43]} Bxf2+ {[%emt 0:01:01]} 32. Qxf2 {[%emt 0:00:20]} Qxa3 {[%emt 0:00:24]} 33. cxb5 {[%emt 0:02:35]} Qxb3 {[%emt 0:01:13]} 34. bxc6 {[%emt 0:00:02]} Rxc6 {[%emt 0:00:28]} 35. Nxe5 {[%emt 0:00:13]} Rxc3 {[%emt 0:00:23]} 36. Rxd8+ {[%emt 0:00:54]} Kxd8 {[%emt 0:00:05]} 37. Nxf7+ {[%emt 0:00:08]} Kc8 {[%emt 0:00:15]} 38. Nxh8 {[%emt 0:00:10]} Rg3+ {[%emt 0:00:11]} 39. Kh2 {[%emt 0:01:42]} Rxh3+ {[%emt 0:00:06]} 40. Kg2 {[%emt 0:00:00]} Rc3 {[%emt 0:01:18]} 41. Re2 {[%emt 0:30:46]} a4 {[%emt 0:30:46]} 42. Ng6 {[%emt 0:00:10]} a3 {[%emt 0:00:00]} 43. Ne7+ {[%emt 0:00:00]} Kd7 {[%emt 0:00:00]} 44. Nd5 {[%emt 0:00:00]} Rd3 {[%emt 0:00:00]} 45. Qa7+ {[%emt 0:00:00]} Kc6 {[%emt 0:00:00]} 46. Rc2+ {[%emt 0:00:00]} Qxc2+ {[%emt 0:00:00]} 0-1

[Event "WSTCC-50 2024"]
[Site "Krakow"]
[Date "2024.07.03"]
[Round "2.7"]
[White "Arkell, Keith C"]
[Black "Sagalchik, Olga"]
[Result "1-0"]
[ECO "D43"]
[WhiteElo "2375"]
[BlackElo "2128"]
[Annotator "TA"]
[PlyCount "73"]
[EventDate "2024.07.01"]
[EventType "team-tourn"]
[EventCountry "POL"]
[SourceTitle "playchess.com"]
[Source "ChessBase"]
[SourceQuality "1"]
[TimeControl "40/5400+30:1800+30"]

{[%evp 21,73,52,76,62,59,0,21,22,20,5,31,34,28,21,34,-2,12,6,20,10,51,43,50,52,150,157,138,125,160,151,145,149,250,237,240,239,247,233,263,263,287,281,304,293,352,368,352,352,29951,29957,29997,29997,29998,29999]} 1. d4 {[%emt 0:00:06]} d5 {[%emt 0:00:22]} 2. Nf3 {[%emt 0:00:09]} Nf6 {[%emt 0:00:49]} 3. c4 {[%emt 0:00:05]} c6 {[%emt 0:01:45]} 4. Nc3 {[%emt 0:00:55]} e6 {[%emt 0:00:51]} 5. cxd5 {[%emt 0:00:06]} exd5 {[%emt 0:00:25]} 6. Qc2 {[%emt 0:00:05]} Nbd7 {[%emt 0:01:45]} 7. Bg5 {[%emt 0:00:06]} h6 {[%emt 0:04:03]} 8. Bh4 {[%emt 0:00:05]} Bb4 {[%emt 0:05:52]} 9. e3 {[%emt 0:04:28]} Qa5 {[%emt 0:04:53]} 10. Bd3 {[%emt 0:01:11]} O-O {[%emt 0:03:43]} 11. O-O {[%emt 0:02:32]} Re8 {[%emt 0:02:28]} 12. a3 {[%emt 0:02:53]} Bxc3 {[%emt 0:07:51]} 13. Qxc3 {[%emt 0:00:28]} Qxc3 {[%emt 0:00:43]} 14. bxc3 {[%emt 0:00:05] The position is equal.} Ne4 {[%emt 0:02:01] Dodges Nd2} 15. Rfc1 {[%emt 0:06:26]} Nf8 {[%emt 0:06:12]} 16. c4 {[%emt 0:03:31]} dxc4 {[%emt 0:02:13]} 17. Bxc4 {[%emt 0:00:49]} Be6 {[%emt 0:06:27]} 18. Bxe6 {[%emt 0:01:41]} Rxe6 {[%emt 0:04:21]} 19. g4 {[%emt 0:08:29]} g5 {[%emt 0:01:00]} 20. Bg3 {[%emt 0:00:01]} Nxg3 {[%emt 0:00:08]} 21. hxg3 {[%emt 0:00:03]} Rd8 {[%emt 0:17:06]} 22. a4 {[%emt 0:03:50]} a5 {[%emt 0:06:27]} (22... Rd5 $14) 23. Rab1 $16 {[%emt 0:00:23]} Re7 {[%emt 0:00:28]} 24. Rb2 {[%emt 0:08:11]} f6 {[%emt 0:04:15]} 25. Nd2 {[%emt 0:05:36]} Ne6 {[%emt 0:01:49]} 26. Kg2 {[%emt 0:07:02]} Kf7 {[%emt 0:01:26] [#]} (26... Kf8 $16 {is a better defense.} 27. Rcc2 Kf7) 27. Nc4 $1 $18 {[%emt 0:14:48]} Rd5 {[%emt 0:00:09]} 28. Rcb1 {[%emt 0:01:54]} Rdd7 {[%emt 0:04:21]} 29. Rb6 {[%emt 0:05:41]} Nd8 {[%emt 0:00:25]} 30. Nxa5 {[%emt 0:00:39]} Kg6 {[%emt 0:00:42]} 31. Nb3 {[%emt 0:02:07]} h5 {[%emt 0:00:20]} 32. Nc5 {[%emt 0:00:23]} Rc7 {[%emt 0:00:08]} 33. gxh5+ {[%emt 0:01:00]} Kxh5 {[%emt 0:00:03] [#]} 34. d5 $1 {[%emt 0:05:11][%mdl 512]} cxd5 $2 {[%emt 0:02:37] [#]} (34... Re5 $18 35. d6 (35. Nxb7 Nxb7 36. Rxb7 Rxb7 $16) 35... Rc8) (34... Rc8 35. d6) 35. Rxf6 $1 {[%emt 0:00:16] White mates.} g4 {[%emt 0:00:09]} (35... Rxe3 36. fxe3) 36. Rh1+ {[%emt 0:01:32]} Kg5 {[%emt 0:00:10]} 37. Rfh6 {[%emt 0:00:11] Weighted Error Value: White=0.06 (flawless) /Black=0.54.  Mistake:       	---       	Black=3      Inaccurate:     	White=2     	Black=2      OK:         	White=11    	Black=4      Strong:       	White=2     	---} 1-0

[Event "WSTCC-50 2024"]
[Site "Krakow"]
[Date "2024.07.03"]
[Round "2.7"]
[White "Briestensky, Rastislav"]
[Black "Jackson, Sheila"]
[Result "0-1"]
[ECO "D04"]
[WhiteElo "2274"]
[BlackElo "1988"]
[Annotator "TA"]
[PlyCount "124"]
[EventDate "2024.07.01"]
[EventType "team-tourn"]
[EventCountry "POL"]
[SourceTitle "playchess.com"]
[Source "ChessBase"]
[SourceQuality "1"]
[TimeControl "40/5400+30:1800+30"]

{[%evp 10,124,33,0,2,2,1,5,16,-8,0,-1,0,0,0,-18,-25,-22,-21,-27,-17,-24,-4,-34,-20,-34,-29,-25,-27,-26,-27,-93,-52,-57,-31,-57,-54,-50,-8,-14,-23,-22,-14,-24,-37,-51,-54,-45,-43,-61,-60,-117,-117,-117,-117,-262,-236,-245,-243,-326,-292,-393,-380,-410,-408,-386,-374,-404,-346,-415,-415,-410,-412,-391,-412,-487,-439,-757,-705,-794,-824,-511,-661,-664,-1040,-1590,-1621,-1698,-1232,-1455,-1644,-1624,-1359,-1265,-1296,-1161,-1064,-29966,-29967,-29965,-29969,-29962,-29967,-29975,-29976,-29976,-29977,-29977,-29978,-29979,-29980,-29980,-29978,-29983,-29982,-29981,-29982]} 1. d4 {[%emt 0:00:02]} d5 {[%emt 0:00:07]} 2. Nf3 {[%emt 0:00:06]} Nf6 {[%emt 0:00:04]} 3. e3 {[%emt 0:00:07]} Bf5 {[%emt 0:01:51]} 4. c4 {[%emt 0:01:10]} e6 {[%emt 0:00:41]} 5. Nc3 {[%emt 0:00:10]} c6 {[%emt 0:00:23]} 6. a3 {[%emt 0:00:21]} h6 {[%emt 0:02:37]} 7. Bd3 {[%emt 0:01:49]} Bxd3 {[%emt 0:01:33]} 8. Qxd3 {[%emt 0:00:09]} Bd6 {[%emt 0:01:24] Die Stellung ist ausgeglichen.} 9. c5 {[%emt 0:00:16]} Bc7 {[%emt 0:00:46]} 10. b4 {[%emt 0:00:05]} Nbd7 {[%emt 0:13:09]} 11. O-O {[%emt 0:03:24]} O-O {[%emt 0:00:24]} 12. e4 {[%emt 0:02:34]} dxe4 {[%emt 0:00:50]} 13. Nxe4 {[%emt 0:00:14]} Nxe4 {[%emt 0:02:14]} 14. Qxe4 {[%emt 0:00:07]} Nf6 {[%emt 0:01:17]} 15. Qe2 {[%emt 0:00:06]} Qd5 {[%emt 0:05:01]} 16. Re1 {[%emt 0:00:19]} a5 {[%emt 0:03:22]} 17. Bd2 {[%emt 0:02:18]} axb4 {[%emt 0:01:33]} 18. axb4 {[%emt 0:00:07]} b5 {[%emt 0:03:54]} 19. cxb6 {[%emt 0:10:20]} Bxb6 {[%emt 0:00:01]} 20. Bf4 {[%emt 0:07:53]} (20. Qe5 $11 {hält das Gleichgewicht.}) 20... Rfd8 {[%emt 0:08:45]} 21. Be5 {[%emt 0:01:11]} Qb5 {[%emt 0:06:06]} 22. Qxb5 {[%emt 0:15:22]} cxb5 {[%emt 0:00:18]} 23. Bxf6 {[%emt 0:00:09]} Rxa1 {[%emt 0:05:09]} 24. Rxa1 {[%emt 0:07:13]} gxf6 $15 {[%emt 0:00:05][%mdl 4096] Endspiel. KRB-KRN} 25. Kf1 {[%emt 0:00:05]} Rd5 {[%emt 0:07:06]} 26. Ra8+ {[%emt 0:00:42]} Kg7 {[%emt 0:00:30]} 27. Rb8 {[%emt 0:00:08]} Bc7 {[%emt 0:00:41]} 28. Rb7 {[%emt 0:00:37]} Bd6 {[%emt 0:00:28]} 29. Ke2 {[%emt 0:06:01]} Bxb4 {[%emt 0:00:21]} 30. Ke3 {[%emt 0:01:09]} (30. Kd3 $15) 30... Bc3 $17 {[%emt 0:05:52]} 31. Kd3 {[%emt 0:01:46]} b4 {[%emt 0:00:09]} 32. Ra7 {[%emt 0:00:07] [#] Der Zug kostet die Partie für Weiß.} (32. Ke3 $17) 32... Bxd4 $1 $19 {[%emt 0:03:07][%mdl 512]} 33. Nxd4 {[%emt 0:00:45] Droht Kc4 und aus. KRN-KR} e5 {[%emt 0:00:08]} 34. Rb7 {[%emt 0:01:04][%cal Ob7b4]} Rxd4+ {[%emt 0:00:13] KR-KR} 35. Ke3 {[%emt 0:00:07]} f5 {[%emt 0:02:54]} 36. Rb6 {[%emt 0:01:27]} f6 {[%emt 0:00:40]} 37. Rb7+ {[%emt 0:00:20]} Kg6 {[%emt 0:00:10]} 38. Ke2 {[%emt 0:00:28]} f4 {[%emt 0:03:07]} 39. f3 {[%emt 0:01:04]} f5 {[%emt 0:11:19]} 40. Rb6+ {[%emt 0:01:27]} Kg5 {[%emt 0:00:18]} 41. Rb5 {[%emt 0:30:50]} e4 {[%emt 0:36:27]} ({Schwächer ist} 41... Kf6 42. Rb6+ Kg5 43. Rb5 $19) 42. fxe4 {[%emt 0:00:05]} Rxe4+ {[%emt 0:00:11]} 43. Kf2 {[%emt 0:01:19]} (43. Kd2 $142 Rd4+ 44. Ke2) 43... Rc4 {[%emt 0:01:18]} 44. Rb8 {[%emt 0:01:04]} Rc2+ {[%emt 0:01:18]} 45. Kf3 {[%emt 0:00:04]} Rc3+ {[%emt 0:01:01]} 46. Kf2 {[%emt 0:00:11]} b3 {[%emt 0:00:33]} 47. Rb6 {[%emt 0:00:06]} h5 {[%emt 0:02:27]} 48. Rb4 {[%emt 0:04:38]} Rc2+ {[%emt 0:00:00]} 49. Kf3 {[%emt 0:00:00]} b2 {[%emt 0:00:00]} 50. Rb6 {[%emt 0:00:00]} Rd2 {[%emt 0:00:00]} 51. Rb4 {[%emt 0:00:00]} Kf6 {[%emt 0:00:00] [#] Zielt auf ...Ke5 ab.} 52. Rb5 {[%emt 0:00:00]} Ke6 {[%emt 0:00:00]} 53. h4 {[%emt 0:00:00]} Kd6 {[%emt 0:00:00] Schwarz setzt Matt.} 54. Kxf4 {[%emt 0:00:00]} Kc6 {[%emt 0:00:00]} 55. Rb8 {[%emt 0:00:00]} Rxg2 {[%emt 0:00:00]} 56. Kxf5 {[%emt 0:00:00]} Kc5 {[%emt 0:00:00]} 57. Ke4 {[%emt 0:00:00]} Kc4 {[%emt 0:00:00]} 58. Kf3 {[%emt 0:00:00]} Rh2 {[%emt 0:00:00]} 59. Kg3 {[%emt 0:00:00]} Rd2 {[%emt 0:00:00]} 60. Kf4 {[%emt 0:00:00]} Kc3 {[%emt 0:00:00]} 61. Kg5 {[%emt 0:00:00]} Rd5+ {[%emt 0:00:00]} 62. Kg6 {[%emt 0:00:00]} Rc5 {[%emt 0:00:00] Gewichteter Fehlerwert: Weiß=0.47/Schwarz=0.06 (makellos) .  Fehler:       	Weiß=4     	---        Ungenau:       	Weiß=4     	Schwarz=3     OK:         	Weiß=12    	Schwarz=15    Bester:       	---       	Schwarz=6     Brilliant:      	---       	Schwarz=1} 0-1

[Event "WSTCC-50 2024"]
[Site "Krakow"]
[Date "2024.07.03"]
[Round "2.7"]
[White "Forgo, Eva"]
[Black "Metcalfe, Allister"]
[Result "1-0"]
[ECO "C07"]
[WhiteElo "2060"]
[BlackElo "1889"]
[Annotator "NA RC"]
[PlyCount "73"]
[EventDate "2024.07.01"]
[EventType "team-tourn"]
[EventCountry "POL"]
[SourceTitle "playchess.com"]
[Source "ChessBase"]
[SourceQuality "1"]
[TimeControl "40/5400+30:1800+30"]

1. e4 {[%emt 0:00:08]} e6 {[%emt 0:00:06]} 2. d4 {[%emt 0:00:07]} d5 {[%emt 0:00:05]} 3. Nd2 {[%emt 0:00:13]} c5 {[%emt 0:00:41]} 4. exd5 {[%emt 0:00:36]} Qxd5 {[%emt 0:00:52]} 5. Ngf3 {[%emt 0:00:32]} cxd4 {[%emt 0:00:32]} 6. Bc4 {[%emt 0:00:25]} Qd6 {[%emt 0:00:08]} 7. O-O {[%emt 0:00:28]} Nf6 {[%emt 0:01:22]} 8. Nb3 {[%emt 0:00:35]} Be7 {[%emt 0:02:32]} 9. Nbxd4 {[%emt 0:01:55]} a6 {[%emt 0:05:37]} 10. Re1 {[%emt 0:12:03]} O-O {[%emt 0:07:43]} 11. c3 {[%emt 0:04:48]} Nc6 {[%emt 0:08:06]} 12. Nxc6 {[%emt 0:04:41]} Qxc6 {[%emt 0:00:30]} 13. Ne5 {[%emt 0:00:16]} Qc7 {[%emt 0:00:13]} 14. Bb3 {[%emt 0:14:20]} Rd8 {[%emt 0:08:29]} 15. Qe2 {[%emt 0:01:33]} Bd6 {[%emt 0:03:26]} 16. h3 {[%emt 0:07:27]} b5 {[%emt 0:07:07]} 17. Bg5 {[%emt 0:21:08]} Be7 {[%emt 0:09:36]} 18. Rad1 {[%emt 0:01:16]} h6 {[%emt 0:07:11]} 19. Bc1 {[%emt 0:06:01]} Bd6 {[%emt 0:02:23]} 20. Ng4 {[%emt 0:04:56]} Nxg4 {[%emt 0:07:41]} 21. Qxg4 {[%emt 0:00:02]} Kh7 {[%emt 0:00:28]} 22. Bc2+ {[%emt 0:04:59]} g6 {[%emt 0:02:16]} 23. Qh4 {[%emt 0:00:11]} Rh8 {[%emt 0:05:22]} 24. Qxh6+ {[%emt 0:00:21]} Kg8 {[%emt 0:00:08]} 25. Qd2 {[%emt 0:00:50]} Be7 {[%emt 0:02:22]} 26. Be4 {[%emt 0:00:23]} Ra7 {[%emt 0:04:56]} 27. Qd3 {[%emt 0:00:14]} Qc4 {[%emt 0:05:49]} 28. Qxc4 {[%emt 0:01:26]} bxc4 {[%emt 0:00:02]} 29. Be3 {[%emt 0:00:35]} Rd7 {[%emt 0:01:30]} 30. Rxd7 {[%emt 0:00:24]} Bxd7 {[%emt 0:00:58]} 31. Rd1 {[%emt 0:00:43]} Be8 {[%emt 0:01:08]} 32. Bf3 {[%emt 0:02:31]} f6 {[%emt 0:01:40]} 33. b3 {[%emt 0:01:52]} cxb3 {[%emt 0:00:50]} 34. axb3 {[%emt 0:00:01]} e5 {[%emt 0:03:30]} 35. Ra1 {[%emt 0:00:49]} Bf7 {[%emt 0:01:23]} 36. c4 {[%emt 0:00:14]} Kg7 {[%emt 0:00:00]} 37. Rxa6 1-0